fUSD/lending_fUSD_20250806
["ID","MTS","AMOUNT","RATE_DAILY","PERIOD"]
[377574480,1754445107240,-1559.95,0.00036438,14]
[377574481,1754445107249,-554.46,0.00036438,14]
[377574482,1754445107259,-400.0,0.00036438,14]
[377574483,1754445107268,-740.32,0.00036438,14]
[377574484,1754445107277,-3323.49,0.00036438,14]
[377574485,1754445107287,-1792.71,0.00036438,14]
[377574486,1754445107297,-400.0,0.00036438,14]
[377574487,1754445107307,-400.0,0.00036438,14]
[377574488,1754445107317,-670.67,0.00036438,14]
[377574489,1754445107327,-400.0,0.00036438,14]
[377574490,1754445107337,-400.0,0.00036438,14]
[377574491,1754445107346,-423.31,0.00036438,14]
[377574492,1754445107356,-400.0,0.00036438,14]
[377574493,1754445107366,-400.0,0.00036438,14]
[377574494,1754445107376,-400.0,0.00036438,14]
[377574495,1754445107385,-163.40644,0.00036438,7]
[377574496,1754445107395,-629.22,0.00036438,14]
[377574497,1754445107404,-1278.36,0.00036438,14]
[377574498,1754445107414,-605.83,0.00036438,14]
[377574499,1754445107423,-1742.73,0.00036438,14]
[377574500,1754445107434,-400.0,0.00036438,14]
[377574501,1754445107443,-840.63,0.00036438,14]
[377574502,1754445107452,-151.0,0.00036438,7]
[377574503,1754445107462,-151.0,0.00036438,7]
[377574504,1754445107471,-2115.6,0.00036438,14]
[377574505,1754445107480,-400.0,0.00036438,14]
[377574506,1754445107490,-2121.86,0.00036438,14]
[377574507,1754445107499,-1594.04,0.00036438,14]
[377574508,1754445107508,-400.0,0.00036438,14]
[377574509,1754445107518,-400.0,0.00036438,14]
[377574510,1754445107527,-1906.92,0.00036438,14]
[377574511,1754445107537,-400.0,0.00036438,14]
[377574512,1754445107546,-2029.65,0.00036438,14]
[377574513,1754445107555,-1284.54,0.00036438,14]
[377574514,1754445107565,-400.0,0.00036438,14]
[377574515,1754445107575,-639.18,0.00036438,14]
[377574516,1754445107585,-400.0,0.00036438,14]
[377574517,1754445107594,-867.89,0.00036438,14]
[377574518,1754445107603,-400.0,0.00036438,14]
[377574519,1754445107612,-768.12,0.00036438,14]
[377574520,1754445107622,-986.68,0.00036438,14]
[377574521,1754445107632,-1728.43,0.00036438,14]
[377574522,1754445107641,-400.0,0.00036438,2]
[377574523,1754445107651,-400.0,0.00036438,14]
[377574524,1754445107661,-1056.28,0.00036438,14]
[377574525,1754445107671,-1087.98,0.00036438,14]
[377574526,1754445107680,-1331.35,0.00036438,14]
[377574527,1754445107690,-818.29,0.00036438,2]
[377574528,1754445107699,-400.0,0.00036438,14]
[377574529,1754445107709,-400.0,0.00036438,14]
[377574530,1754445107719,-1671.93,0.00036438,14]
[377574531,1754445107728,-400.0,0.00036438,14]
[377574532,1754445107737,-915.29,0.00036438,14]
[377574533,1754445107747,-987.79,0.00036438,14]
[377574534,1754445107756,-400.0,0.00036438,14]
[377574535,1754445107766,-400.0,0.00036438,2]
[377574536,1754445107776,-1706.07,0.00036438,14]
[377574537,1754445107786,-400.0,0.00036438,14]
[377574538,1754445107795,-400.0,0.00036438,14]
[377574539,1754445107805,-400.0,0.00036438,14]
[377574540,1754445107815,-400.0,0.00036438,14]
[377574541,1754445107825,-4680.28,0.00036438,14]
[377574542,1754445107836,-2398.75,0.00036438,14]
[377574543,1754445107848,-1209.91,0.00036438,14]
[377574544,1754445107858,-787.03,0.00036438,14]
[377574545,1754445107867,-1250.29,0.00036438,14]
[377574546,1754445107876,-850.29,0.00036438,14]
[377574547,1754445107886,-400.0,0.00036438,14]
[377574548,1754445107909,-400.0,0.00036438,14]
[377574549,1754445107927,-453.59,0.00036438,14]
[377574550,1754445107947,-2065.74,0.00036438,14]
[377574551,1754445107966,-400.0,0.00036438,14]
[377574552,1754445107984,-400.0,0.00036438,14]
[377574553,1754445108007,-1925.3,0.00036438,14]
[377574554,1754445108028,-400.0,0.00036438,14]
[377574555,1754445108050,-400.0,0.00036438,14]
[377574556,1754445108069,-449.51,0.00036438,14]
[377574557,1754445108095,-802.3,0.00036438,14]
[377574558,1754445108113,-400.0,0.00036438,14]
[377574559,1754445108131,-1899.36,0.00036438,14]
[377574560,1754445108147,-400.0,0.00036438,14]
[377574561,1754445108166,-400.0,0.00036438,14]
[377574562,1754445108181,-693.92,0.00036438,14]
[377574563,1754445108203,-400.0,0.00036438,14]
[377574564,1754445108225,-723.29,0.00036438,14]
[377574565,1754445108247,-827.55,0.00036438,14]
[377574566,1754445108269,-1605.43,0.00036438,14]
[377574567,1754445108290,-400.0,0.00036438,14]
[377574568,1754445108308,-1841.43,0.00036438,14]
[377574569,1754445108327,-400.0,0.00036438,14]
[377574570,1754445108345,-400.0,0.00036438,14]
[377574571,1754445108364,-400.0,0.00036438,14]
[377574572,1754445108382,-400.0,0.00036438,14]
[377574573,1754445108401,-400.0,0.00036438,14]
[377574574,1754445108418,-400.0,0.00036438,14]
[377574575,1754445108434,-2206.71,0.00036438,14]
[377574576,1754445108451,-2337.97,0.00036438,14]
[377574577,1754445108470,-400.0,0.00036438,14]
[377574578,1754445108489,-1457.88,0.00036438,14]
[377574579,1754445108506,-1789.45,0.00036438,14]
[377574580,1754445108522,-2047.12,0.00036438,14]
[377574581,1754445108539,-2197.84,0.00036438,14]
[377574582,1754445108556,-400.0,0.00036438,14]
[377574583,1754445108574,-400.0,0.00036438,14]
[377574584,1754445108592,-677.89,0.00036438,14]
[377574585,1754445108608,-2021.48,0.00036438,14]
[377574586,1754445108636,-400.0,0.00036438,14]
[377574587,1754445108652,-565.33,0.00036438,14]
[377574588,1754445108668,-1499.56,0.00036438,14]
[377574589,1754445108684,-400.0,0.00036438,2]
[377574590,1754445108701,-426.85,0.00036438,14]
[377574591,1754445108717,-400.0,0.00036438,14]
[377574592,1754445108733,-400.0,0.00036438,14]
[377574593,1754445108749,-1904.85,0.00036438,14]
[377574594,1754445108765,-400.0,0.00036438,14]
[377574595,1754445108780,-1056.9,0.00036438,14]
[377574596,1754445108796,-400.0,0.00036438,14]
[377574597,1754445108814,-400.0,0.00036438,14]
[377574598,1754445108831,-461.52,0.00036438,14]
[377574599,1754445108849,-400.0,0.00036438,14]
[377574600,1754445108867,-151.0,0.00036438,7]
[377574601,1754445108884,-400.0,0.00036438,14]
[377574602,1754445108901,-401.00458912,0.00036438,14]
[377574603,1754445108919,-1030.82,0.00036438,14]
[377574604,1754445108936,-403.59314444,0.00036438,14]
[377574605,1754445108952,-1475.54,0.00036438,14]
[377574606,1754445108968,-400.0,0.00036438,14]
[377574607,1754445108984,-422.51,0.00036438,14]
[377574608,1754445109001,-400.0,0.00036438,14]
[377574609,1754445109018,-400.0,0.00036438,14]
[377574610,1754445109034,-451.74,0.00036438,14]
[377574611,1754445109050,-981.32,0.00036438,14]
[377574612,1754445109067,-912.69,0.00036438,14]
[377574613,1754445109085,-910.24,0.00036438,14]
[377574614,1754445109102,-401.05794948,0.00036438,14]
[377574615,1754445109117,-1838.27,0.00036438,14]
[377574616,1754445109135,-1750.74,0.00036438,14]
[377574617,1754445109151,-1148.89,0.00036438,14]
[377574618,1754445109167,-489.78,0.00036438,14]
[377574619,1754445109184,-1112.24,0.00036438,14]
[377574620,1754445109199,-3267.86,0.00036438,14]
[377574621,1754445109216,-1269.87,0.00036438,14]
[377574622,1754445109231,-2011.52,0.00036438,14]
[377574623,1754445109248,-400.0,0.00036438,14]
[377574624,1754445109265,-1943.34,0.00036438,14]
[377574625,1754445109282,-400.0,0.00036438,14]
[377574626,1754445109298,-400.0,0.00036438,14]
[377574627,1754445109313,-400.0,0.00036438,14]
[377574628,1754445109330,-400.0,0.00036438,14]
[377574629,1754445109347,-400.0,0.00036438,14]
[377574630,1754445109362,-400.0,0.00036438,14]
[377574631,1754445109378,-462.85,0.00036438,14]
[377574632,1754445109394,-1836.14,0.00036438,14]
[377574633,1754445109409,-2886.93,0.00036438,14]
[377574634,1754445109425,-1923.9,0.00036438,14]
[377574635,1754445109441,-500.55,0.00036438,14]
[377574636,1754445109456,-400.0,0.00036438,14]
[377574637,1754445109472,-788.92,0.00036438,14]
[377574638,1754445109488,-400.0,0.00036438,14]
[377574639,1754445109503,-635.4,0.00036438,14]
[377574640,1754445109519,-400.0,0.00036438,14]
[377574641,1754445109535,-719.56,0.00036438,14]
[377574642,1754445109550,-1842.81,0.00036438,14]
[377574643,1754445109566,-400.0,0.00036438,14]
[377574644,1754445109583,-3804.91,0.00036438,14]
[377574645,1754445109598,-1965.5,0.00036438,14]
[377574646,1754445109613,-400.0,0.00036438,14]
[377574647,1754445109629,-664.17,0.00036438,14]
[377574648,1754445109645,-400.0,0.00036438,14]
[377574649,1754445109660,-528.91,0.00036438,14]
[377574650,1754445109678,-400.0,0.00036438,14]
[377574651,1754445109693,-3285.06,0.00036438,14]
[377574652,1754445109708,-1611.48,0.00036438,14]
[377574653,1754445109723,-400.0,0.00036438,14]
[377574654,1754445109739,-300.0,0.00036438,14]
[377574655,1754445109754,-400.0,0.00036438,14]
[377574656,1754445109768,-400.0,0.00036438,14]
[377574657,1754445109784,-843.81,0.00036438,14]
[377574658,1754445109799,-664.72,0.00036438,14]
[377574659,1754445109816,-2286.3,0.00036438,14]
[377574660,1754445109831,-400.0,0.00036438,14]
[377574661,1754445109849,-400.0,0.00036438,14]
[377574662,1754445109864,-1228.65,0.00036438,14]
[377574663,1754445109880,-817.71,0.00036438,14]
[377574664,1754445109895,-400.0,0.00036438,14]
[377574665,1754445109910,-2285.89,0.00036438,14]
[377574666,1754445109924,-400.0,0.00036438,14]
[377574667,1754445109939,-688.12,0.00036438,14]
[377574668,1754445109953,-400.0,0.00036438,14]
[377574669,1754445109968,-400.0,0.00036438,14]
[377574670,1754445109984,-534.6,0.00036438,14]
[377574671,1754445109999,-691.09,0.00036438,14]
[377574672,1754445110016,-400.0,0.00036438,14]
[377574673,1754445110033,-826.81,0.00036438,14]
[377574674,1754445110049,-774.95,0.00036438,14]
[377574675,1754445110064,-707.35,0.00036438,14]
[377574676,1754445110081,-2483.22,0.00036438,14]
[377574677,1754445110095,-2387.79,0.00036438,14]
[377574678,1754445110118,-1988.08,0.00036438,14]
[377574679,1754445110135,-400.0,0.00036438,14]
[377574680,1754445110153,-400.0,0.00036438,14]
[377574681,1754445110171,-400.0,0.00036438,14]
[377574682,1754445110189,-460.78,0.00036438,14]
[377574683,1754445110207,-1013.02,0.00036438,14]
[377574684,1754445110223,-697.09,0.00036438,14]
[377574685,1754445110239,-3032.43,0.00036438,14]
[377574686,1754445110255,-455.45,0.00036438,14]
[377574687,1754445110272,-1254.27,0.00036438,14]
[377574688,1754445110286,-1325.26,0.00036438,14]
[377574689,1754445110295,-1290.32,0.00036438,14]
[377574690,1754445110304,-1704.34,0.00036438,14]
[377574691,1754445110314,-400.0,0.00036438,14]
[377574692,1754445110323,-2854.84,0.00036438,14]
[377574693,1754445110333,-400.0,0.00036438,14]
[377574694,1754445110343,-181.4670699,0.00036438,14]
[377574695,1754445110352,-587.45,0.00036438,14]
[377574696,1754445110361,-400.0,0.00036438,14]
[377574697,1754445110371,-400.0,0.00036438,14]
[377574698,1754445110380,-400.0,0.00036438,14]
[377574699,1754445110390,-1693.96,0.00036438,14]
[377574700,1754445110399,-2049.87,0.00036438,14]
[377574701,1754445110408,-990.4,0.00036438,14]
[377574702,1754445110417,-3413.9,0.00036438,14]
[377574703,1754445110426,-400.0,0.00036438,14]
[377574704,1754445110436,-1042.69,0.00036438,14]
[377574705,1754445110445,-1556.67,0.00036438,14]
[377574706,1754445110454,-477.26,0.00036438,14]
[377574707,1754445110465,-400.0,0.00036438,14]
[377574708,1754445110475,-402.35,0.00036438,14]
[377574709,1754445110484,-400.0,0.00036438,14]
[377574710,1754445110493,-2127.16,0.00036438,14]
[377574711,1754445110503,-400.0,0.00036438,14]
[377574712,1754445110512,-400.0,0.00036438,14]
[377574713,1754445110521,-1286.74,0.00036438,14]
[377574714,1754445110530,-400.0,0.00036438,14]
[377574715,1754445110539,-650.36,0.00036438,14]
[377574716,1754445110549,-400.0,0.00036438,14]
[377574717,1754445110558,-400.0,0.00036438,14]
[377574718,1754445110569,-1272.91,0.00036438,14]
[377574719,1754445110579,-2983.78,0.00036438,14]
[377574720,1754445110589,-1167.76,0.00036438,14]
[377574721,1754445110599,-1978.73,0.00036438,14]
[377574722,1754445110608,-400.0,0.00036438,14]
[377574723,1754445110618,-537.68,0.00036438,14]
[377574724,1754445110627,-279.05337732,0.00036438,14]
[377574725,1754445110636,-400.0,0.00036438,14]
[377574726,1754445110646,-1618.78,0.00036438,14]
[377574727,1754445110655,-481.3,0.00036438,14]
[377574728,1754445110664,-400.0,0.00036438,14]
[377574729,1754445110675,-1023.05,0.00036438,14]
[377574730,1754445110685,-400.0,0.00036438,14]
[377574731,1754445110695,-400.0,0.00036438,14]
[377574732,1754445110704,-214.29327083,0.00036438,14]
[377574733,1754445110713,-456.75,0.00036438,14]
[377574734,1754445111411,-400.0,0.00036438,14]
[377574735,1754445111444,-400.0,0.00036438,14]
[377574736,1754445111470,-1487.38,0.00036438,14]
[377574737,1754445111496,-423.93,0.00036438,14]
[377574738,1754445111521,-400.0,0.00036438,14]
[377574739,1754445111545,-1101.66,0.00036438,14]
[377574740,1754445111561,-1906.16,0.00036438,14]
[377574741,1754445111570,-400.0,0.00036438,14]
[377574742,1754445111580,-1382.08,0.00036438,14]
[377574743,1754445111590,-400.0,0.00036438,14]
[377574744,1754445111599,-566.23,0.00036438,14]
[377574745,1754445111609,-1089.74,0.00036438,14]
[377574746,1754445111631,-400.0,0.00036438,14]
[377574747,1754445111643,-1123.2,0.00036438,14]
[377574748,1754445111653,-1398.154307,0.00036438,14]
[377574749,1754445111662,-1620.16,0.00036438,14]
[377574750,1754445111672,-400.0,0.00036438,14]
[377574751,1754445111681,-825.89,0.00036438,14]
[377574752,1754445111691,-400.0,0.00036438,14]
[377574753,1754445111700,-554.16,0.00036438,14]
[377574754,1754445111710,-2526.57,0.00036438,14]
[377574755,1754445111730,-400.0,0.00036438,14]
[377574756,1754445111740,-1043.57,0.00036438,14]
[377574757,1754445111750,-400.0,0.00036438,14]
[377574758,1754445111759,-400.0,0.00036438,14]
[377574759,1754445111769,-978.27,0.00036438,14]
[377574760,1754445111779,-400.0,0.00036438,14]
[377574761,1754445111788,-400.0,0.00036438,14]
[377574762,1754445111798,-400.0,0.00036438,14]
[377574763,1754445111808,-1121.455681,0.00036438,14]
[377574764,1754445111817,-870.7,0.00036438,14]
[377574765,1754445111827,-400.0,0.00036438,14]
[377574766,1754445111838,-1579.29,0.00036438,14]
[377574767,1754445111851,-2370.33,0.00036438,14]
[377574768,1754445111860,-400.0,0.00036438,14]
[377574769,1754445111870,-1431.57,0.00036438,14]
[377574770,1754445111880,-766.55,0.00036438,14]
[377574771,1754445111890,-1157.79,0.00036438,14]
[377574772,1754445111899,-400.0,0.00036438,14]
[377574773,1754445111909,-400.0,0.00036438,14]
[377574774,1754445111919,-1586.040996,0.00036438,14]
[377574775,1754445111928,-2107.14,0.00036438,14]
[377574776,1754445111938,-803.41,0.00036438,14]
[377574777,1754445111947,-400.0,0.00036438,14]
[377574778,1754445111957,-400.0,0.00036438,14]
[377574779,1754445111966,-509.96,0.00036438,14]
[377574780,1754445111975,-400.0,0.00036438,14]
[377574781,1754445111985,-400.0,0.00036438,14]
[377574782,1754445111995,-1003.35,0.00036438,14]
[377574783,1754445112004,-445.22,0.00036438,14]
[377574784,1754445112012,-400.0,0.00036438,14]
[377574785,1754445112022,-400.0,0.00036438,14]
[377574786,1754445112031,-1001.5,0.00036438,14]
[377574787,1754445112040,-2459.31,0.00036438,14]
[377574788,1754445112049,-243.385005,0.00036438,14]
[377574789,1754445112059,-596.41,0.00036438,14]
[377574790,1754445112068,-1798.86,0.00036438,14]
[377574791,1754445112078,-163.835228,0.00036438,14]
[377574792,1754445112087,-400.0,0.00036438,14]
[377574793,1754445112096,-1145.0,0.00036438,14]
[377574794,1754445112105,-400.0,0.00036438,14]
[377574795,1754445112115,-400.0,0.00036438,14]
[377574796,1754445112125,-400.0,0.00036438,14]
[377574797,1754445112135,-859.74,0.00036438,14]
[377574798,1754445112144,-400.0,0.00036438,14]
[377574799,1754445112154,-400.0,0.00036438,14]
[377574800,1754445112163,-2751.78,0.00036438,14]
[377574801,1754445112172,-416.83,0.00036438,14]
[377574802,1754445112184,-1520.4,0.00036438,14]
[377574803,1754445112194,-400.0,0.00036438,14]
[377574804,1754445112203,-1607.76,0.00036438,14]
[377574805,1754445112213,-1527.37,0.00036438,14]
[377574806,1754445112223,-439.67,0.00036438,14]
[377574807,1754445112233,-400.0,0.00036438,14]
[377574808,1754445112244,-2046.3,0.00036438,14]
[377574809,1754445112253,-2962.64,0.00036438,14]
[377574810,1754445112263,-400.0,0.00036438,14]
[377574811,1754445112272,-400.0,0.00036438,14]
[377574812,1754445112281,-400.0,0.00036438,14]
[377574813,1754445112290,-400.0,0.00036438,14]
[377574814,1754445112300,-1827.77,0.00036438,14]
[377574815,1754445112309,-400.0,0.00036438,14]
[377574816,1754445112318,-400.0,0.00036438,14]
[377574817,1754445112327,-2171.96,0.00036438,14]
[377574818,1754445112336,-400.0,0.00036438,14]
[377574819,1754445112345,-2284.3,0.00036438,14]
[377574820,1754445112355,-1380.46,0.00036438,14]
[377574821,1754445112364,-400.0,0.00036438,14]
[377574822,1754445112374,-400.0,0.00036438,14]
[377574823,1754445112383,-977.84,0.00036438,14]
[377574824,1754445112392,-459.21,0.00036438,14]
[377574825,1754445112401,-400.0,0.00036438,14]
[377574826,1754445112410,-476.26955391,0.00036438,14]
[377574827,1754445112419,-400.0,0.00036438,14]
[377574828,1754445112428,-1461.2,0.00036438,14]
[377574829,1754445112438,-796.51,0.00036438,14]
[377574830,1754445112447,-400.0,0.00036438,14]
[377574831,1754445112456,-400.0,0.00036438,14]
[377574832,1754445112466,-400.0,0.00036438,14]
[377574833,1754445112475,-1923.74,0.00036438,14]
[377574834,1754445112484,-400.0,0.00036438,14]
[377574835,1754445112493,-2614.37,0.00036438,14]
[377574836,1754445112502,-769.37,0.00036438,14]
[377574837,1754445112511,-400.0,0.00036438,14]
[377574838,1754445112520,-1290.75,0.00036438,14]
[377574839,1754445112530,-1352.85,0.00036438,14]
[377574840,1754445112539,-1209.54,0.00036438,14]
[377574841,1754445112547,-757.96,0.00036438,14]
[377574842,1754445112557,-754.97,0.00036438,14]
[377574843,1754445112566,-841.08,0.00036438,14]
[377574844,1754445112575,-400.0,0.00036438,14]
[377574845,1754445112585,-772.6,0.00036438,14]
[377574846,1754445112594,-2094.9,0.00036438,14]
[377574847,1754445112603,-624.89,0.00036438,14]
[377574848,1754445112613,-432.33474537,0.00036438,14]
[377574849,1754445112624,-400.0,0.00036438,14]
[377574850,1754445112635,-2492.87,0.00036438,14]
[377574851,1754445112646,-400.6795063,0.00036438,14]
[377574852,1754445112657,-400.0,0.00036438,14]
[377574853,1754445112667,-400.0,0.00036438,14]
[377574854,1754445112677,-400.0,0.00036438,14]
[377574855,1754445112686,-1272.84,0.00036438,14]
[377574856,1754445112695,-400.0,0.00036438,14]
[377574857,1754445112704,-637.27,0.00036438,14]
[377574858,1754445112714,-1611.84,0.00036438,14]
[377574859,1754445112723,-400.0,0.00036438,14]
[377574860,1754445112733,-2718.79,0.00036438,14]
[377574861,1754445112742,-1692.25,0.00036438,14]
[377574862,1754445112752,-400.0,0.00036438,14]
[377574863,1754445112762,-400.0,0.00036438,14]
[377574864,1754445112771,-151.0,0.00036438,7]
[377574865,1754445112781,-652.68,0.00036438,14]
[377574866,1754445112790,-1315.11,0.00036438,14]
[377574867,1754445112800,-1943.43,0.00036438,14]
[377574868,1754445112810,-1591.38,0.00036438,14]
[377574869,1754445112819,-400.0,0.00036438,14]
[377574870,1754445112829,-400.0,0.00036438,14]
[377574871,1754445112841,-756.43,0.00036438,14]
[377574872,1754445112850,-400.0,0.00036438,14]
[377574873,1754445112860,-400.0,0.00036438,14]
[377574874,1754445112869,-2237.96,0.00036438,14]
[377574875,1754445112878,-420.22,0.00036438,14]
[377574876,1754445112888,-400.0,0.00036438,14]
[377574877,1754445112898,-865.96,0.00036438,14]
[377574878,1754445112908,-1894.82,0.00036438,14]
[377574879,1754445112918,-819.6,0.00036438,14]
[377574880,1754445112928,-2575.51,0.00036438,14]
[377574881,1754445112937,-2053.25,0.00036438,14]
[377574882,1754445112946,-400.0,0.00036438,14]
[377574883,1754445112955,-400.0,0.00036438,14]
[377574884,1754445112964,-481.12908951,0.00036438,14]
[377574885,1754445112974,-2031.47,0.00036438,14]
[377574886,1754445112983,-1871.26,0.00036438,14]
[377574887,1754445112992,-500.0,0.00036438,10]
[377574888,1754445113001,-400.0,0.00036438,14]
[377574889,1754445113010,-1397.46,0.00036438,14]
[377574890,1754445113019,-400.0,0.00036438,14]
[377574891,1754445113028,-1450.07,0.00036438,14]
[377574892,1754445113037,-400.0,0.00036438,14]
[377574893,1754445113046,-1199.57,0.00036438,14]
[377574894,1754445113056,-441.04,0.00036438,14]
[377574895,1754445113065,-400.0,0.00036438,14]
[377574896,1754445113074,-400.0,0.00036438,14]
[377574897,1754445113084,-400.0,0.00036438,14]
[377574898,1754445113094,-1209.5,0.00036438,14]
[377574899,1754445113103,-400.0,0.00036438,14]
[377574900,1754445113112,-418.92,0.00036438,14]
[377574901,1754445113122,-400.0,0.00036438,14]
[377574902,1754445113132,-400.0,0.00036438,14]
[377574903,1754445113141,-3525.98,0.00036438,14]
[377574904,1754445113151,-400.0,0.00036438,14]
[377574905,1754445113161,-1221.92,0.00036438,14]
[377574906,1754445113170,-1752.0,0.00036438,14]
[377574907,1754445113180,-473.14,0.00036438,14]
[377574908,1754445113189,-400.0,0.00036438,14]
[377574909,1754445113198,-2230.94,0.00036438,14]
[377574910,1754445113208,-1920.97,0.00036438,14]
[377574911,1754445113217,-1237.41,0.00036438,14]
[377574912,1754445113226,-526.37,0.00036438,14]
[377574913,1754445113235,-400.0,0.00036438,14]
[377574914,1754445113244,-927.89,0.00036438,14]
[377574915,1754445113253,-400.0,0.00036438,14]
[377574916,1754445113262,-400.0,0.00036438,14]
[377574917,1754445113271,-400.0,0.00036438,14]
[377574918,1754445113280,-400.0,0.00036438,14]
[377574919,1754445113289,-400.0,0.00036438,14]
[377574920,1754445113302,-1273.79,0.00036438,14]
[377574921,1754445113312,-400.0,0.00036438,14]
[377574922,1754445113323,-400.0,0.00036438,14]
[377574923,1754445113333,-400.0,0.00036438,14]
[377574924,1754445113342,-2062.42,0.00036438,14]
[377574925,1754445113352,-2103.57,0.00036438,14]
[377574926,1754445113361,-650.32,0.00036438,14]
[377574927,1754445113370,-2044.76,0.00036438,14]
[377574928,1754445113380,-1965.21,0.00036438,14]
[377574929,1754445113389,-733.36,0.00036438,14]
[377574930,1754445113399,-514.18,0.00036438,14]
[377574931,1754445113408,-1869.68,0.00036438,14]
[377574932,1754445113418,-400.0,0.00036438,14]
[377574933,1754445113427,-214.54255879,0.00036438,14]
[377574934,1754445113437,-400.0,0.00036438,14]
[377574935,1754445113447,-1998.0,0.00036438,14]
[377574936,1754445113457,-1802.74,0.00036438,14]
[377574937,1754445113466,-400.0,0.00036438,14]
[377574938,1754445113475,-2287.14,0.00036438,14]
[377574939,1754445113485,-400.0,0.00036438,14]
[377574940,1754445113494,-403.94,0.00036438,14]
[377574941,1754445113504,-400.0,0.00036438,14]
[377574942,1754445113516,-522.06,0.00036438,14]
[377574943,1754445113524,-531.6172178,0.00036438,14]
[377574944,1754445113533,-3124.69,0.00036438,2]
[377574945,1754445113543,-2221.48,0.00036438,14]
[377574946,1754445113552,-1141.51,0.00036438,14]
[377574947,1754445113561,-2248.73,0.00036438,14]
[377574948,1754445113571,-653.24,0.00036438,14]
[377574949,1754445113581,-449.07,0.00036438,14]
[377574950,1754445113599,-400.0,0.00036438,14]
[377574951,1754445113608,-400.0,0.00036438,14]
[377574952,1754445113618,-400.0,0.00036438,14]
[377574953,1754445113627,-2572.93,0.00036438,14]
[377574954,1754445113637,-2996.94,0.00036438,14]
[377574955,1754445113647,-400.0,0.00036438,14]
[377574956,1754445113657,-400.0,0.00036438,14]
[377574957,1754445113667,-3089.34,0.00036438,14]
[377574958,1754445113677,-1321.44,0.00036438,14]
[377574959,1754445113686,-1853.29,0.00036438,14]
[377574960,1754445113696,-554.5,0.00036438,14]
[377574961,1754445113705,-717.97,0.00036438,14]
[377574962,1754445113714,-919.64,0.00036438,14]
[377574963,1754445113723,-500.0,0.00036438,33]
[377574964,1754445113732,-400.0,0.00036438,14]
[377574965,1754445113742,-2962.89,0.00036438,14]
[377574966,1754445113751,-400.0,0.00036438,14]
[377574967,1754445113760,-400.0,0.00036438,14]
[377574968,1754445113770,-400.0,0.00036438,14]
[377574969,1754445113780,-400.0,0.00036438,14]
[377574970,1754445113790,-400.0,0.00036438,14]
[377574971,1754445113799,-400.0,0.00036438,14]
[377574972,1754445113811,-400.0,0.00036438,14]
[377574973,1754445113820,-1038.9,0.00036438,14]
[377574974,1754445113833,-2119.95,0.00036438,14]
[377574975,1754445113846,-400.0,0.00036438,14]
[377574976,1754445113856,-1842.57,0.00036438,14]
[377574977,1754445113866,-1090.66,0.00036438,14]
[377574978,1754445113878,-2772.54,0.00036438,14]
[377574979,1754445113888,-400.0,0.00036438,14]